fUST/lending_fUST_20250912
["ID","MTS","AMOUNT","RATE_DAILY","PERIOD"]
[384899582,1757622648252,-677.46,0.00016191,2]
[384899583,1757622648261,-956.89,0.00016191,2]
[384899584,1757622648270,-164.55,0.00016191,2]
[384899585,1757622648279,-480.0,0.00016191,2]
[384899587,1757622648288,-572.95426501,0.00016191,2]
[384899588,1757622648298,-736.84,0.00016191,2]
[384899590,1757622648308,-480.0,0.00016191,2]
[384899592,1757622648317,-867.63,0.00016191,2]
[384899594,1757622648326,-480.0,0.00016192,2]
[384899596,1757622648335,-481.42,0.00016192,2]
[384899598,1757622648344,-785.87,0.00016192,2]
[384899600,1757622648353,-151.0,0.00016193,2]
[384899602,1757622648362,-151.0,0.00016193,2]
[384899604,1757622648371,-480.0,0.00016193,2]
[384899606,1757622648381,-151.0,0.00016193,2]
[384899608,1757622648391,-9900.57,0.00016193,2]
[384899610,1757622648401,-480.0,0.00016193,2]
[384899612,1757622648410,-807.58,0.00016193,2]
[384899614,1757622648420,-1043.46,0.00016193,2]
[384899616,1757622648429,-3468.83,0.00016193,2]
[384899618,1757622648438,-1129.46,0.00016193,2]
[384899620,1757622648448,-511.06,0.00016193,2]
[384899622,1757622648457,-480.0,0.00016193,2]
[384899624,1757622648466,-695.55,0.00016193,2]
[384899626,1757622648475,-1295.04,0.00016193,2]
[384899628,1757622648485,-1933.92,0.00016193,2]
[384899630,1757622648494,-914.24,0.00016193,2]
[384899632,1757622648503,-1500.0,0.0001622,2]
[384899634,1757622648512,-174.59529717,0.0001638,2]
[384899636,1757622648521,-151.0,0.000164,2]
[384899638,1757622648530,-480.0,0.00016438,3]
[384899640,1757622648540,-267.1081954,0.00016438,2]
[384899641,1757622648550,-200.0,0.00016438,3]
[384899643,1757622648559,-200.0,0.00016438,3]
[384899645,1757622648568,-200.0,0.00016438,3]
[384899647,1757622648577,-200.0,0.00016438,3]
[384899649,1757622648588,-200.0,0.00016438,3]
[384899652,1757622648597,-200.0,0.00016438,3]
[384899653,1757622648607,-2347.87260389,0.00016443,2]
[384899655,1757622648616,-2000.0,0.00016448,2]
[384899657,1757622648626,-1519.29,0.00016465,2]
[384899660,1757622648636,-1245.2,0.00016465,2]
[384899661,1757622648646,-985.78,0.00016465,2]
[384899663,1757622648655,-677.46,0.00016465,2]
[384899666,1757622648665,-956.89,0.00016465,2]
[384899667,1757622648674,-480.0,0.00016465,2]
[384899670,1757622648683,-736.84,0.00016465,2]
[384899671,1757622648694,-480.0,0.00016465,2]
[384899673,1757622648703,-867.63,0.00016465,2]
[384899675,1757622648712,-480.0,0.00016466,2]
[384899677,1757622648722,-481.42,0.00016466,2]
[384899679,1757622648731,-785.87,0.00016466,2]
[384899681,1757622648740,-480.0,0.00016467,2]
[384899684,1757622648749,-9900.57,0.00016467,2]
[384899685,1757622648759,-480.0,0.00016467,2]
[384899687,1757622648768,-807.58,0.00016467,2]
[384899689,1757622648778,-1043.46,0.00016467,2]
[384899691,1757622648787,-3468.83,0.00016467,2]
[384899693,1757622648798,-1129.46,0.00016467,2]
[384899696,1757622648808,-511.06,0.00016467,2]
[384899698,1757622648817,-480.0,0.00016467,2]
[384899699,1757622648827,-695.55,0.00016467,2]
[384899702,1757622648836,-1295.04,0.00016467,2]
[384899704,1757622648846,-1933.92,0.00016467,2]
[384899706,1757622648856,-914.24,0.00016467,2]
[384899708,1757622648865,-587.0,0.0001648,2]
[384899709,1757622648875,-2000.0,0.00016497,2]
[384899711,1757622648884,-1889.28198483,0.000165,2]
[384899713,1757622648894,-1500.0,0.00016512,2]
[384899715,1757622648903,-2000.0,0.00016512,2]
[384899717,1757622648913,-2000.0,0.00016512,2]
[384899720,1757622648925,-572.61979282,0.00016512,2]
[384899722,1757622648934,-360.0,0.00016513,2]
[384899724,1757622648943,-250.0,0.00016522,2]
[384899726,1757622648952,-151.0,0.000167,2]
[384899727,1757622648961,-1519.29,0.00016739,2]
[384899729,1757622648970,-1245.2,0.00016739,2]
[384899731,1757622648979,-985.78,0.00016739,2]
[384899733,1757622648988,-677.46,0.00016739,2]
[384899736,1757622648998,-956.89,0.00016739,2]
[384899737,1757622649007,-480.0,0.00016739,2]
[384899740,1757622649017,-736.84,0.00016739,2]
[384899741,1757622649026,-480.0,0.00016739,2]
[384899743,1757622649038,-867.63,0.00016739,2]
[384899746,1757622649049,-480.0,0.0001674,2]
[384899748,1757622649058,-481.42,0.0001674,2]
[384899750,1757622649067,-785.87,0.0001674,2]
[384899752,1757622649077,-151.0,0.00016741,2]
[384899754,1757622649086,-480.0,0.00016741,2]
[384899756,1757622649096,-9900.57,0.00016741,2]
[384899758,1757622649105,-480.0,0.00016741,2]
[384899760,1757622649116,-807.58,0.00016741,2]
[384899762,1757622649125,-1043.46,0.00016741,2]
[384899764,1757622649134,-3468.83,0.00016741,2]
[384899766,1757622649144,-1129.46,0.00016741,2]
[384899768,1757622649154,-511.06,0.00016741,2]
[384899770,1757622649163,-480.0,0.00016741,2]
[384899772,1757622649172,-695.55,0.00016741,2]
[384899774,1757622649181,-1295.04,0.00016741,2]
[384899776,1757622649191,-1933.92,0.00016741,2]
[384899778,1757622649200,-914.24,0.00016741,2]
[384899780,1757622649209,-500.0,0.00016768,2]
[384899782,1757622649219,-3559.33417987,0.00016902,2]
[384899784,1757622649228,-2434.74389024,0.00016991,2]
[384899786,1757622649237,-1003.62831199,0.00016996,2]
[384899788,1757622649246,-10583.28703691,0.00017,7]
[384899790,1757622649256,-530.95967032,0.00017,7]
[384899792,1757622649265,-160.0,0.00017,7]
[384899794,1757622649274,-1519.29,0.00017013,2]
[384899796,1757622649283,-1245.2,0.00017013,2]
[384899798,1757622649292,-985.78,0.00017013,2]
[384899800,1757622649302,-677.46,0.00017013,2]
[384899802,1757622649312,-956.89,0.00017013,2]
[384899804,1757622649321,-480.0,0.00017013,2]
[384899806,1757622649330,-736.84,0.00017013,2]
[384899808,1757622649339,-480.0,0.00017013,2]
[384899810,1757622649348,-867.63,0.00017013,2]
[384899812,1757622649357,-480.0,0.00017014,2]
[384899813,1757622649367,-481.42,0.00017014,2]
[384899815,1757622649376,-785.87,0.00017014,2]
[384899817,1757622649385,-480.0,0.00017015,2]
[384899819,1757622649395,-9900.57,0.00017015,2]
[384899821,1757622649404,-480.0,0.00017015,2]
[384899823,1757622649414,-807.58,0.00017015,2]
[384899825,1757622649423,-1043.46,0.00017015,2]
[384899827,1757622649433,-3468.83,0.00017015,2]
[384899830,1757622649443,-1129.46,0.00017015,2]
[384899831,1757622649453,-511.06,0.00017015,2]
[384899833,1757622649463,-480.0,0.00017015,2]
[384899835,1757622649472,-414.00190698,0.00017015,2]
[384899970,1757622650828,666.0,0.00013274,2]
[384900342,1757622687909,10000.01,0.00013626,2]
[384900343,1757622687938,10000.01,0.00013626,2]
[384900344,1757622687964,10000.01,0.00013626,2]
[384900345,1757622687987,10000.01,0.00013626,2]
[384900346,1757622688009,10000.01,0.00013626,2]
[384900347,1757622688032,10000.01,0.00013626,2]
[384900348,1757622688057,10000.01,0.00013626,2]
[384900349,1757622688084,10000.01,0.00013626,2]
[384900350,1757622688108,10000.01,0.00013626,2]
[384900351,1757622688132,10000.01,0.00013626,2]
[384900352,1757622688155,10000.01,0.00013626,2]
[384900353,1757622688179,5186.85513187,0.00013626,2]
[384900354,1757622699447,1074.93819955,0.00013586,2]
[384900355,1757622703878,154.259125,0.00024,30]
[384900356,1757622704831,154.259125,0.00023178,30]
[384900357,1757622707887,1740.0,0.00013586,2]
[384900358,1757622716841,1740.0,0.00013586,2]
[384900359,1757622724784,1440.0,0.00013586,2]
[384900360,1757622727539,634.31,0.00012329,2]
[384900361,1757622734862,1740.0,0.00013586,2]
[384900362,1757622738398,528.6,0.00012329,2]
[384900363,1757622742778,1740.0,0.00013586,2]
[384900364,1757622748905,440.5,0.00012329,2]
[384900365,1757622752102,1740.0,0.00013586,2]
[384900366,1757622754567,274.0,0.00027397,120]
[384900367,1757622759434,367.08,0.00012329,2]
[384900368,1757622759917,1740.0,0.00013586,2]
[384900369,1757622767999,1740.0,0.00013586,2]
[384900370,1757622769946,305.9,0.00012329,2]
[384900371,1757622780473,254.92,0.00012329,2]
[384900374,1757622784864,2880.0,0.00013586,2]
[384900376,1757622788278,607.961643,0.00013699,2]
[384900377,1757622790912,212.43,0.00012329,2]
[384900378,1757622792646,300.0,0.00013585,2]
[384900380,1757622801336,177.02,0.00012329,2]
[384900382,1757622811142,300.0,0.00013585,2]
[384900383,1757622811816,885.15,0.00012329,2]
[384900384,1757622819059,300.0,0.00013585,2]
[384900385,1757622821696,204.10530951,0.00013622,2]
[384900387,1757622834855,300.0,0.00013585,2]
[384900388,1757622842886,3840.0,0.00013586,2]
[384900389,1757622858593,300.0,0.00013585,2]
[384900390,1757622863465,1005.23,0.00012329,2]
[384900391,1757622867110,300.0,0.00013585,2]
[384900392,1757622868057,-300.0,0.00013722,2]
[384900393,1757622868084,-480.0,0.00013723,2]
[384900394,1757622868111,-480.0,0.00013723,2]
[384900395,1757622868136,-480.0,0.00013723,2]
[384900396,1757622868161,-480.0,0.00013723,2]
[384900397,1757622868187,-480.0,0.00013723,2]
[384900398,1757622868369,-480.0,0.00013723,2]
[384900399,1757622868398,-480.0,0.00013723,2]
[384900400,1757622868419,-480.0,0.00013723,2]
[384900401,1757622868442,-480.0,0.00013723,2]
[384900402,1757622868465,-480.0,0.00013724,2]
[384900403,1757622868488,-480.0,0.00013724,2]
[384900404,1757622868511,-480.0,0.00013724,2]
[384900405,1757622868535,-536.59,0.00013724,2]
[384900406,1757622868557,-480.0,0.00013724,2]
[384900407,1757622868580,-480.0,0.00013724,2]
[384900408,1757622868602,-480.0,0.00013724,2]
[384900409,1757622868625,-480.0,0.00013724,2]
[384900410,1757622868648,-821.11,0.00013724,2]
[384900411,1757622868671,-813.23,0.00013724,2]
[384900412,1757622868693,-480.0,0.00013724,2]
[384900413,1757622868718,-480.0,0.00013725,2]
[384900414,1757622868741,-950.91,0.00013725,2]
[384900415,1757622868763,-480.0,0.00013725,2]
[384900416,1757622868786,-480.0,0.00013725,2]
[384900417,1757622868808,-480.0,0.00013725,2]
[384900418,1757622868833,-480.0,0.00013725,2]
[384900419,1757622868855,-480.0,0.00013725,2]
[384900420,1757622868879,-480.0,0.00013725,2]
[384900421,1757622868910,-480.0,0.00013725,2]
[384900422,1757622868938,-480.0,0.00013725,2]
[384900423,1757622868961,-480.0,0.00013725,2]
[384900424,1757622868985,-480.0,0.00013725,2]
[384900425,1757622869009,-480.0,0.00013725,2]
[384900426,1757622869034,-805.08,0.00013725,2]
[384900427,1757622869057,-480.0,0.00013725,2]
[384900428,1757622869081,-515.57,0.00013725,2]
[384900429,1757622869104,-480.0,0.00013725,2]
[384900430,1757622869126,-480.0,0.00013725,2]
[384900431,1757622869149,-480.0,0.00013725,2]
[384900432,1757622869171,-480.0,0.00013725,2]
[384900433,1757622869193,-480.0,0.00013725,2]
[384900434,1757622869218,-480.0,0.00013725,2]
[384900435,1757622869242,-480.0,0.00013725,2]
[384900436,1757622869264,-480.0,0.00013725,2]
[384900437,1757622869286,-480.0,0.00013725,2]
[384900438,1757622869308,-480.0,0.00013725,2]
[384900439,1757622869330,-480.0,0.00013725,2]
[384900440,1757622869351,-480.0,0.00013725,2]
[384900441,1757622869373,-480.0,0.00013725,2]
[384900442,1757622869395,-480.0,0.00013725,2]
[384900443,1757622869418,-480.0,0.00013725,2]
[384900444,1757622869439,-480.0,0.00013725,2]
[384900445,1757622869461,-480.0,0.00013725,2]
[384900446,1757622869484,-1078.95,0.00013725,2]
[384900447,1757622869506,-480.0,0.00013725,2]
[384900448,1757622869528,-480.0,0.00013725,2]
[384900449,1757622869550,-594.44083356,0.00013725,2]
[384900450,1757622869571,-480.0,0.00013725,2]
[384900451,1757622869592,-480.0,0.00013725,2]
[384900452,1757622869614,-480.0,0.00013725,2]
[384900453,1757622869635,-480.0,0.00013725,2]
[384900454,1757622869657,-480.0,0.00013726,2]
[384900455,1757622869678,-480.0,0.00013726,2]
[384900456,1757622869701,-480.0,0.00013726,2]
[384900457,1757622869725,-480.0,0.00013726,2]
[384900458,1757622869746,-496.36558375,0.00013726,2]
[384900459,1757622869768,-480.0,0.00013726,2]
[384900460,1757622869790,-480.0,0.00013727,2]
[384900461,1757622869812,-480.0,0.00013727,2]
[384900462,1757622869833,-480.0,0.00013727,2]
[384900463,1757622869855,-480.0,0.00013727,2]
[384900464,1757622869877,-531.6513929,0.00013727,2]
[384900465,1757622869900,-480.0,0.00013727,2]
[384900466,1757622869921,-480.0,0.00013727,2]
[384900467,1757622869943,-480.0,0.00013727,2]
[384900468,1757622869965,-480.0,0.00013727,2]
[384900469,1757622869987,-791.14,0.00013727,2]
[384900470,1757622870010,-480.0,0.00013727,2]
[384900471,1757622870032,-480.0,0.00013727,2]
[384900472,1757622870054,-480.0,0.00013727,2]
[384900473,1757622870074,-480.0,0.00013727,2]
[384900474,1757622870097,-768.59,0.00013727,2]
[384900475,1757622870119,-480.0,0.00013727,2]
[384900476,1757622870143,-2806.46,0.00013727,2]
[384900477,1757622870164,-480.0,0.00013727,2]
[384900478,1757622870185,-480.0,0.00013727,2]
[384900479,1757622870207,-480.0,0.00013727,2]
[384900480,1757622870231,-480.0,0.00013727,2]
[384900481,1757622870253,-480.0,0.00013727,2]
[384900482,1757622870274,-480.0,0.00013727,2]
[384900483,1757622870296,-480.0,0.00013727,2]
[384900484,1757622870319,-480.0,0.00013727,2]
[384900485,1757622870341,-480.0,0.00013727,2]
[384900486,1757622870363,-480.0,0.00013727,2]
[384900487,1757622870385,-480.0,0.00013727,2]
[384900488,1757622870408,-738.79,0.00013727,2]
[384900489,1757622870432,-1224.71,0.00013727,2]
[384900490,1757622870456,-480.0,0.00013727,2]
[384900491,1757622870480,-13520.93,0.00013727,2]
[384900492,1757622870504,-578.67,0.00013727,2]
[384900493,1757622870526,-480.0,0.00013727,2]
[384900494,1757622870548,-480.0,0.00013728,2]
[384900495,1757622870571,-480.0,0.00013728,2]
[384900496,1757622870592,-480.0,0.00013728,2]
[384900497,1757622870722,-480.0,0.00013728,2]
[384900498,1757622870745,-480.0,0.00013728,2]
[384900499,1757622870769,-480.0,0.00013728,2]
[384900500,1757622870792,-480.0,0.00013728,2]
[384900501,1757622870815,-6575.87117092,0.00013899,2]
[384900502,1757622870837,-417.15472785,0.00013984,2]
[384900503,1757622870858,-160.0,0.00013984,2]
[384900504,1757622870880,-217.69300629,0.00013984,2]
[384900505,1757622870902,-160.0,0.00013984,2]
[384900506,1757622870924,-233.10680167,0.00013984,2]
[384900507,1757622870946,-846.96613202,0.00013984,2]
[384900508,1757622870968,-160.0,0.00013984,2]
[384900509,1757622870990,-500.0,0.00013996,2]
[384900510,1757622871015,-500.0,0.00013996,2]
[384900511,1757622871039,-500.0,0.00013996,2]
[384900512,1757622871064,-500.0,0.00013996,2]
[384900513,1757622871087,-380.0,0.00013996,2]
[384900514,1757622871109,-200.0,0.00013996,2]
[384900515,1757622871132,-500.0,0.00013996,2]
[384900516,1757622871155,-500.0,0.00013996,2]
[384900517,1757622871178,-500.0,0.00013996,2]
[384900518,1757622871202,-465.24377971,0.00013996,2]
[384900519,1757622871227,-500.0,0.00013996,2]
[384900520,1757622871252,-500.0,0.00013996,2]
[384900521,1757622871276,-300.0,0.00013997,2]
[384900522,1757622871300,-300.0,0.00013997,2]
[384900523,1757622871326,-300.0,0.00013997,2]
[384900524,1757622871350,-300.0,0.00013997,2]
[384900525,1757622871373,-300.0,0.00013997,2]
[384900526,1757622871396,-300.0,0.00013997,2]
[384900527,1757622871420,-300.0,0.00013997,2]
[384900528,1757622871444,-300.0,0.00013997,2]
[384900529,1757622871468,-300.0,0.00013997,2]
[384900530,1757622871494,-300.0,0.00013997,2]
[384900531,1757622871516,-300.0,0.00013997,2]
[384900532,1757622871539,-300.0,0.00013997,2]
[384900533,1757622871562,-300.0,0.00013997,2]
[384900534,1757622871584,-300.0,0.00013997,2]
[384900535,1757622871607,-300.0,0.00013997,2]
[384900536,1757622871630,-600.0,0.00013997,2]
[384900537,1757622871651,-480.0,0.00013997,2]
[384900538,1757622871673,-480.0,0.00013997,2]
[384900539,1757622871695,-480.0,0.00013997,2]
[384900540,1757622871718,-480.0,0.00013997,2]
[384900541,1757622871741,-480.0,0.00013998,2]
[384900542,1757622871763,-480.0,0.00013998,2]
[384900543,1757622871785,-480.0,0.00013998,2]
[384900544,1757622871810,-536.59,0.00013998,2]
[384900545,1757622871832,-480.0,0.00013998,2]
[384900546,1757622871855,-480.0,0.00013998,2]
[384900547,1757622871877,-480.0,0.00013998,2]
[384900548,1757622871900,-480.0,0.00013998,2]
[384900549,1757622871925,-821.11,0.00013998,2]
[384900550,1757622871948,-813.23,0.00013998,2]
[384900551,1757622871970,-480.0,0.00013998,2]
[384900552,1757622871992,-480.0,0.00013999,2]
[384900553,1757622872015,-950.91,0.00013999,2]
[384900554,1757622872036,-480.0,0.00013999,2]
[384900555,1757622872057,-480.0,0.00013999,2]
[384900556,1757622872080,-480.0,0.00013999,2]
[384900557,1757622872102,-480.0,0.00013999,2]
[384900558,1757622872124,-480.0,0.00013999,2]
[384900559,1757622872146,-480.0,0.00013999,2]
[384900560,1757622872167,-480.0,0.00013999,2]
[384900561,1757622872190,-805.08,0.00013999,2]
[384900562,1757622872212,-480.0,0.00013999,2]
[384900563,1757622872236,-515.57,0.00013999,2]
[384900564,1757622872260,-480.0,0.00013999,2]
[384900565,1757622872283,-480.0,0.00013999,2]
[384900566,1757622872305,-480.0,0.00013999,2]
[384900567,1757622872332,-480.0,0.00013999,2]
[384900568,1757622872356,-480.0,0.00013999,2]
[384900569,1757622872379,-480.0,0.00013999,2]
[384900570,1757622872402,-480.0,0.00013999,2]
[384900571,1757622872425,-480.0,0.00013999,2]
[384900572,1757622872448,-480.0,0.00013999,2]
[384900573,1757622872470,-480.0,0.00013999,2]
[384900574,1757622872493,-480.0,0.00013999,2]
[384900575,1757622872516,-1078.95,0.00013999,2]
[384900576,1757622872539,-480.0,0.00013999,2]
[384900577,1757622872564,-480.0,0.00013999,2]
[384900578,1757622872587,-480.0,0.00013999,2]
[384900579,1757622872610,-480.0,0.00013999,2]
[384900580,1757622872632,-480.0,0.00013999,2]
[384900581,1757622872655,-480.0,0.00014,2]
[384900582,1757622872676,-480.0,0.00014,2]
[384900583,1757622872698,-480.0,0.00014,2]
[384900584,1757622872719,-480.0,0.00014,2]
[384900585,1757622872741,-480.0,0.00014,2]
[384900586,1757622872763,-480.0,0.00014001,2]
[384900587,1757622872787,-480.0,0.00014001,2]
[384900588,1757622872808,-480.0,0.00014001,2]
[384900589,1757622872831,-480.0,0.00014001,2]
[384900590,1757622872852,-480.0,0.00014001,2]
[384900591,1757622872874,-480.0,0.00014001,2]
[384900592,1757622872896,-480.0,0.00014001,2]
[384900593,1757622872918,-791.14,0.00014001,2]
[384900594,1757622872940,-480.0,0.00014001,2]
[384900595,1757622872961,-480.0,0.00014001,2]
[384900596,1757622872983,-480.0,0.00014001,2]
[384900597,1757622873004,-480.0,0.00014001,2]
[384900598,1757622873027,-768.59,0.00014001,2]
[384900599,1757622873050,-480.0,0.00014001,2]
[384900600,1757622873075,-2806.46,0.00014001,2]
[384900601,1757622873098,-480.0,0.00014001,2]
[384900602,1757622873120,-480.0,0.00014001,2]
[384900603,1757622873144,-480.0,0.00014001,2]
[384900604,1757622873166,-480.0,0.00014001,2]
[384900605,1757622873189,-480.0,0.00014001,2]
[384900606,1757622873211,-480.0,0.00014001,2]
[384900607,1757622873240,-480.0,0.00014001,2]
[384900608,1757622873265,-480.0,0.00014001,2]
[384900609,1757622873288,-480.0,0.00014001,2]
[384900610,1757622873314,-738.79,0.00014001,2]
[384900611,1757622873339,-1224.71,0.00014001,2]
[384900612,1757622873364,-13520.93,0.00014001,2]
[384900613,1757622873512,-578.67,0.00014001,2]
[384900614,1757622873536,-480.0,0.00014001,2]
[384900615,1757622873559,-480.0,0.00014002,2]
[384900616,1757622873581,-480.0,0.00014002,2]
[384900617,1757622873604,-480.0,0.00014002,2]
[384900618,1757622873627,-480.0,0.00014002,2]
[384900619,1757622873650,-480.0,0.00014002,2]
[384900620,1757622873673,-480.0,0.00014002,2]
[384900621,1757622873695,-166.48441979,0.00014175,2]
[384900622,1757622873717,-480.0,0.00014271,2]
[384900623,1757622873740,-480.0,0.00014271,2]
[384900624,1757622873763,-480.0,0.00014271,2]
[384900625,1757622873786,-480.0,0.00014271,2]
[384900626,1757622873809,-480.0,0.00014272,2]
[384900627,1757622873831,-480.0,0.00014272,2]
[384900628,1757622873855,-480.0,0.00014272,2]
[384900629,1757622873879,-536.59,0.00014272,2]
[384900630,1757622873901,-480.0,0.00014272,2]
[384900631,1757622873924,-480.0,0.00014272,2]
[384900632,1757622873946,-480.0,0.00014272,2]
[384900633,1757622873968,-480.0,0.00014272,2]
[384900634,1757622873991,-821.11,0.00014272,2]
[384900635,1757622874015,-813.23,0.00014272,2]
[384900636,1757622874038,-480.0,0.00014272,2]
[384900637,1757622874060,-480.0,0.00014273,2]
[384900638,1757622874088,-950.91,0.00014273,2]
[384900639,1757622874110,-155.2,0.00014273,2]
[384900640,1757622874132,-480.0,0.00014273,2]
[384900641,1757622874155,-480.0,0.00014273,2]
[384900642,1757622874179,-480.0,0.00014273,2]
[384900643,1757622874202,-480.0,0.00014273,2]
[384900644,1757622874230,-480.0,0.00014273,2]
[384900645,1757622874254,-480.0,0.00014273,2]
[384900646,1757622874279,-805.08,0.00014273,2]
[384900647,1757622874304,-480.0,0.00014273,2]
[384900648,1757622874329,-515.57,0.00014273,2]
[384900649,1757622874354,-480.0,0.00014273,2]
[384900650,1757622874377,-480.0,0.00014273,2]
[384900651,1757622874401,-480.0,0.00014273,2]
[384900652,1757622874425,-480.0,0.00014273,2]
[384900653,1757622874449,-480.0,0.00014273,2]
[384900654,1757622874479,-480.0,0.00014273,2]
[384900655,1757622874502,-480.0,0.00014273,2]
[384900656,1757622874525,-480.0,0.00014273,2]
[384900657,1757622874549,-480.0,0.00014273,2]
[384900658,1757622874572,-480.0,0.00014273,2]
[384900659,1757622874597,-480.0,0.00014273,2]
[384900660,1757622874642,-1078.95,0.00014273,2]
[384900661,1757622874666,-480.0,0.00014273,2]
[384900662,1757622874689,-480.0,0.00014273,2]
[384900663,1757622874711,-480.0,0.00014273,2]
[384900664,1757622874735,-480.0,0.00014273,2]
[384900665,1757622874759,-480.0,0.00014273,2]
[384900666,1757622874782,-480.0,0.00014274,2]
[384900667,1757622874805,-480.0,0.00014274,2]
[384900668,1757622874828,-480.0,0.00014274,2]
[384900669,1757622874850,-480.0,0.00014274,2]
[384900670,1757622874873,-480.0,0.00014274,2]
[384900671,1757622874895,-480.0,0.00014275,2]
[384900672,1757622874918,-480.0,0.00014275,2]
[384900673,1757622874941,-436.03717741,0.00014275,2]
[384900674,1757622874964,-480.0,0.00014275,2]
[384900675,1757622874988,-480.0,0.00014275,2]
[384900676,1757622875012,-480.0,0.00014275,2]
[384900677,1757622875036,-791.14,0.00014275,2]
[384900678,1757622875060,-480.0,0.00014275,2]
[384900679,1757622875083,-480.0,0.00014275,2]
[384900680,1757622875108,-480.0,0.00014275,2]
[384900681,1757622875132,-480.0,0.00014275,2]
[384900682,1757622875157,-768.59,0.00014275,2]
[384900683,1757622875179,-480.0,0.00014275,2]
[384900684,1757622875205,-2806.46,0.00014275,2]
[384900685,1757622875229,-480.0,0.00014275,2]
[384900686,1757622875254,-480.0,0.00014275,2]
[384900687,1757622875278,-480.0,0.00014275,2]
[384900688,1757622875302,-480.0,0.00014275,2]
[384900689,1757622875325,-480.0,0.00014275,2]
[384900690,1757622875348,-480.0,0.00014275,2]
[384900691,1757622875371,-480.0,0.00014275,2]
[384900692,1757622875394,-480.0,0.00014275,2]
[384900693,1757622875416,-480.0,0.00014275,2]
[384900694,1757622875440,-738.79,0.00014275,2]
[384900695,1757622875475,-1224.71,0.00014275,2]
[384900696,1757622875500,-8071.19497413,0.00014275,2]
[384900697,1757622875964,837.69,0.00012329,2]
[384900698,1757622884350,698.08,0.00012329,2]
[384900699,1757622884749,480.0,0.00013586,2]
[384900700,1757622892655,480.0,0.00013586,2]
[384900701,1757622895024,581.73,0.00012329,2]
[384900703,1757622905568,484.78,0.00012329,2]
[384900704,1757622909074,2246.92,0.00013586,2]
[384900705,1757622916071,403.98,0.00012329,2]
[384900706,1757622918653,2246.92,0.00013586,2]
[384900707,1757622926619,336.65,0.00012329,2]
[384900708,1757622927284,350.23597348,0.00013586,2]
[384900709,1757622935122,3206.92,0.00013586,2]
[384900710,1757622937490,390.17,0.00012329,2]
[384900711,1757622943171,3206.92,0.00013586,2]
[384900712,1757622948009,583.8,0.00012329,2]
[384900713,1757622958739,486.5,0.00012329,2]
[384900714,1757622959143,4937.88,0.00013586,2]
[384900715,1757622967550,300.0,0.00013585,2]
[384900716,1757622976075,405.42,0.00012329,2]
[384900717,1757622983864,300.0,0.00013585,2]